fUST/lending_fUST_20250723
["ID","MTS","AMOUNT","RATE_DAILY","PERIOD"]
[374109778,1753210248456,-1005.99,0.00018193,2]
[374109779,1753210248466,-5283.6,0.00018193,2]
[374109780,1753210248477,-1079.55,0.00018193,2]
[374109781,1753210248487,-460.0,0.00018193,2]
[374109782,1753210248498,-3137.23,0.00018193,2]
[374109783,1753210248508,-558.47,0.00018193,2]
[374109784,1753210248519,-1196.19,0.00018193,2]
[374109785,1753210248529,-535.59,0.00018193,2]
[374109786,1753210248543,-460.0,0.00018193,2]
[374109787,1753210248553,-1079.29,0.00018193,2]
[374109788,1753210248564,-460.0,0.00018194,2]
[374109789,1753210248575,-746.62,0.00018194,2]
[374109790,1753210248585,-471.42,0.00018194,2]
[374109791,1753210248595,-632.55,0.00018194,2]
[374109792,1753210248605,-606.59,0.00018194,2]
[374109793,1753210248614,-874.42,0.00018194,2]
[374109794,1753210248624,-1090.84,0.00018194,2]
[374109795,1753210248634,-1342.67,0.00018194,2]
[374109796,1753210248643,-460.0,0.00018194,2]
[374109797,1753210248653,-488.38,0.00018194,2]
[374109798,1753210248662,-460.0,0.00018194,2]
[374109799,1753210248672,-460.0,0.00018194,2]
[374109800,1753210248682,-460.0,0.00018194,2]
[374109801,1753210248691,-1118.89,0.00018194,2]
[374109802,1753210248701,-731.94,0.00018194,2]
[374109803,1753210248710,-1345.13,0.00018194,2]
[374109804,1753210248720,-1187.11,0.00018194,2]
[374109805,1753210248730,-2137.7,0.00018194,2]
[374109806,1753210248739,-460.0,0.00018194,2]
[374109807,1753210248748,-1349.67,0.00018194,2]
[374109808,1753210248757,-460.0,0.00018194,2]
[374109809,1753210248767,-460.0,0.00018194,2]
[374109810,1753210248776,-460.0,0.00018194,2]
[374109811,1753210248786,-1694.69,0.00018194,2]
[374109812,1753210248799,-460.0,0.00018194,2]
[374109813,1753210248808,-754.36,0.00018194,2]
[374109814,1753210248818,-929.4,0.00018194,2]
[374109815,1753210248828,-1020.16,0.00018194,2]
[374109816,1753210248838,-646.92,0.00018194,2]
[374109817,1753210248848,-1358.12,0.00018194,2]
[374109818,1753210248858,-460.0,0.00018195,2]
[374109819,1753210248868,-460.0,0.00018195,2]
[374109820,1753210248877,-460.0,0.00018195,2]
[374109821,1753210248886,-553.33,0.00018195,2]
[374109822,1753210248897,-553.25,0.00018195,2]
[374109823,1753210248908,-1153.71,0.00018195,2]
[374109824,1753210248918,-1418.31,0.00018195,2]
[374109825,1753210248928,-155.69,0.00018195,2]
[374109826,1753210248938,-460.0,0.00018195,2]
[374109827,1753210248948,-460.0,0.00018195,2]
[374109828,1753210248959,-557.74,0.00018195,2]
[374109829,1753210248969,-460.0,0.00018195,2]
[374109830,1753210248979,-460.0,0.00018195,2]
[374109831,1753210248989,-1362.87,0.00018195,2]
[374109832,1753210248999,-1064.63,0.00018195,2]
[374109833,1753210249008,-571.13,0.00018195,2]
[374109834,1753210249017,-460.0,0.00018195,2]
[374109835,1753210249026,-547.74414212,0.00018195,2]
[374109836,1753210249035,-588.73,0.00018195,2]
[374109837,1753210249050,-1351.51,0.00018195,2]
[374109838,1753210249059,-1776.12,0.00018195,2]
[374109839,1753210249070,-544.55,0.00018195,2]
[374109840,1753210249080,-2704.27,0.00018195,2]
[374109841,1753210249089,-691.11,0.00018195,2]
[374109842,1753210249099,-460.0,0.00018195,2]
[374109843,1753210249109,-3949.8,0.00018195,2]
[374109844,1753210249119,-863.13,0.00018195,2]
[374109845,1753210249129,-547.67,0.00018195,2]
[374109846,1753210249138,-460.0,0.00018195,2]
[374109847,1753210249148,-460.0,0.00018195,2]
[374109848,1753210249157,-460.0,0.00018195,2]
[374109849,1753210249166,-1345.16,0.00018195,2]
[374109850,1753210249176,-460.0,0.00018196,2]
[374109851,1753210249185,-460.0,0.00018196,2]
[374109852,1753210249194,-460.0,0.00018196,2]
[374109853,1753210249203,-5101.83,0.00018196,2]
[374109854,1753210249287,-460.0,0.00018196,2]
[374109855,1753210249300,-1108.99,0.00018196,2]
[374109856,1753210249310,-460.0,0.00018196,2]
[374109857,1753210249320,-460.0,0.00018196,2]
[374109858,1753210249331,-460.0,0.00018196,2]
[374109859,1753210249341,-605.93,0.00018196,2]
[374109860,1753210249351,-4275.34,0.00018196,2]
[374109861,1753210249361,-460.0,0.00018196,2]
[374109862,1753210249370,-688.73,0.00018196,2]
[374109863,1753210249379,-460.0,0.00018196,2]
[374109864,1753210249389,-460.0,0.00018196,2]
[374109865,1753210249398,-460.0,0.00018196,2]
[374109866,1753210249408,-830.04,0.00018196,2]
[374109867,1753210249418,-524.19,0.00018196,2]
[374109868,1753210249428,-460.0,0.00018196,2]
[374109869,1753210249437,-909.71,0.00018196,2]
[374109870,1753210249446,-871.81,0.00018196,2]
[374109871,1753210249456,-3027.97,0.00018196,2]
[374109872,1753210249466,-2901.81,0.00018196,2]
[374109873,1753210249476,-460.0,0.00018196,2]
[374109874,1753210249486,-460.0,0.00018196,2]
[374109875,1753210249496,-1465.54,0.00018196,2]
[374109876,1753210249506,-859.92,0.00018196,2]
[374109877,1753210249517,-824.09,0.00018196,2]
[374109878,1753210249526,-2920.58,0.00018196,2]
[374109879,1753210249536,-4347.26,0.00018196,2]
[374109880,1753210249548,-460.0,0.00018196,2]
[374109881,1753210249558,-460.0,0.00018196,2]
[374109882,1753210249567,-998.04,0.00018196,2]
[374109883,1753210249577,-460.0,0.00018197,2]
[374109884,1753210249586,-2213.22,0.00018197,2]
[374109885,1753210249596,-585.15769763,0.00018207,2]
[374109886,1753210249605,-800.35007006,0.00018221,2]
[374109887,1753210249615,-420.0,0.0001832,2]
[374109888,1753210249624,-160.0,0.00018404,2]
[374109889,1753210249634,-215.80012421,0.00018404,2]
[374109890,1753210249644,-12619.94447631,0.00018404,2]
[374109891,1753210249653,-160.0,0.00018404,2]
[374109892,1753210249663,-878.0,0.00018411,2]
[374109893,1753210249672,-5275.87341887,0.00018452,2]
[374109894,1753210249681,-1381.8,0.00018458,3]
[374109895,1753210249691,-690.9,0.00018458,3]
[374109896,1753210249700,-345.44,0.00018458,3]
[374109897,1753210249710,-889.22,0.00018465,2]
[374109898,1753210249720,-967.41,0.00018465,2]
[374109899,1753210249729,-3933.01,0.00018465,2]
[374109900,1753210249739,-460.0,0.00018466,2]
[374109901,1753210249748,-5587.21,0.00018467,2]
[374109902,1753210249757,-1108.38,0.00018467,2]
[374109903,1753210249767,-1005.99,0.00018467,2]
[374109904,1753210249776,-5283.6,0.00018467,2]
[374109905,1753210249786,-1079.55,0.00018467,2]
[374109906,1753210249796,-460.0,0.00018467,2]
[374109907,1753210249806,-3137.23,0.00018467,2]
[374109908,1753210249815,-558.47,0.00018467,2]
[374109909,1753210249824,-1196.19,0.00018467,2]
[374109910,1753210249833,-535.59,0.00018467,2]
[374109911,1753210249843,-601.87333163,0.00018467,2]
[374109912,1753210249853,-1079.29,0.00018467,2]
[374109913,1753210249862,-460.0,0.00018468,2]
[374109914,1753210249872,-746.62,0.00018468,2]
[374109915,1753210249881,-471.42,0.00018468,2]
[374109916,1753210249890,-632.55,0.00018468,2]
[374109917,1753210249903,-606.59,0.00018468,2]
[374109918,1753210249912,-874.42,0.00018468,2]
[374109919,1753210249921,-1090.84,0.00018468,2]
[374109920,1753210249930,-1342.67,0.00018468,2]
[374109921,1753210249940,-460.0,0.00018468,2]
[374109922,1753210249950,-488.38,0.00018468,2]
[374109923,1753210249961,-460.0,0.00018468,2]
[374109924,1753210249971,-460.0,0.00018468,2]
[374109925,1753210249983,-460.0,0.00018468,2]
[374109926,1753210249993,-1118.89,0.00018468,2]
[374109927,1753210250003,-731.94,0.00018468,2]
[374109928,1753210250012,-1345.13,0.00018468,2]
[374109929,1753210250022,-1187.11,0.00018468,2]
[374109930,1753210250032,-2137.7,0.00018468,2]
[374109931,1753210250042,-275.45016382,0.00018468,2]
[374109932,1753210250052,-1349.67,0.00018468,2]
[374109933,1753210250062,-460.0,0.00018468,2]
[374109934,1753210250072,-460.0,0.00018468,2]
[374109935,1753210250081,-1694.69,0.00018468,2]
[374109936,1753210250090,-460.0,0.00018468,2]
[374109937,1753210250099,-460.0,0.00018468,2]
[374109938,1753210250109,-754.36,0.00018468,2]
[374109939,1753210250118,-929.4,0.00018468,2]
[374109940,1753210250128,-1020.16,0.00018468,2]
[374109941,1753210250137,-646.92,0.00018468,2]
[374109942,1753210250146,-1358.12,0.00018468,2]
[374109943,1753210250155,-460.0,0.00018469,2]
[374109944,1753210250164,-460.0,0.00018469,2]
[374109945,1753210250174,-460.0,0.00018469,2]
[374109946,1753210250184,-553.33,0.00018469,2]
[374109947,1753210250194,-553.25,0.00018469,2]
[374109948,1753210250204,-1153.71,0.00018469,2]
[374109949,1753210250214,-3014.33771,0.00018469,2]
[374109950,1753210250225,-1418.31,0.00018469,2]
[374109951,1753210250234,-460.0,0.00018469,2]
[374109952,1753210250244,-460.0,0.00018469,2]
[374109953,1753210250254,-557.74,0.00018469,2]
[374109954,1753210250263,-460.0,0.00018469,2]
[374109955,1753210250273,-460.0,0.00018469,2]
[374109956,1753210250282,-1362.87,0.00018469,2]
[374109957,1753210250292,-1064.63,0.00018469,2]
[374109958,1753210250302,-571.13,0.00018469,2]
[374109959,1753210250311,-305.61292667,0.00018469,2]
[374109960,1753210250321,-588.73,0.00018469,2]
[374109961,1753210250331,-1351.51,0.00018469,2]
[374109962,1753210250341,-1776.12,0.00018469,2]
[374109963,1753210250350,-544.55,0.00018469,2]
[374109964,1753210250361,-2704.27,0.00018469,2]
[374109965,1753210250370,-691.11,0.00018469,2]
[374109966,1753210250381,-460.0,0.00018469,2]
[374109967,1753210250390,-3949.8,0.00018469,2]
[374109968,1753210250399,-863.13,0.00018469,2]
[374109969,1753210250408,-547.67,0.00018469,2]
[374109970,1753210250417,-460.0,0.00018469,2]
[374109971,1753210250427,-460.0,0.00018469,2]
[374109972,1753210250436,-460.0,0.00018469,2]
[374109973,1753210250445,-1345.16,0.00018469,2]
[374109974,1753210250454,-460.0,0.0001847,2]
[374109975,1753210250464,-211.70711825,0.0001847,2]
[374109976,1753210250473,-460.0,0.0001847,2]
[374109977,1753210250482,-5101.83,0.0001847,2]
[374109978,1753210250491,-1108.99,0.0001847,2]
[374109979,1753210250501,-460.0,0.0001847,2]
[374109980,1753210250511,-460.0,0.0001847,2]
[374109981,1753210250520,-460.0,0.0001847,2]
[374109982,1753210250529,-605.93,0.0001847,2]
[374109983,1753210250539,-4275.34,0.0001847,2]
[374109984,1753210250549,-460.0,0.0001847,2]
[374109985,1753210250558,-688.73,0.0001847,2]
[374109986,1753210250567,-460.0,0.0001847,2]
[374109987,1753210250577,-247.31008225,0.0001847,2]
[374109988,1753210250654,-460.0,0.0001847,2]
[374109989,1753210250664,-830.04,0.0001847,2]
[374109990,1753210250673,-524.19,0.0001847,2]
[374109991,1753210250682,-460.0,0.0001847,2]
[374109992,1753210250692,-909.71,0.0001847,2]
[374109993,1753210250701,-3027.97,0.0001847,2]
[374109994,1753210250711,-460.0,0.0001847,2]
[374109995,1753210250721,-460.0,0.0001847,2]
[374109996,1753210250730,-1465.54,0.0001847,2]
[374109997,1753210250739,-859.92,0.0001847,2]
[374109998,1753210250748,-824.09,0.0001847,2]
[374109999,1753210250758,-2920.58,0.0001847,2]
[374110000,1753210250768,-4347.26,0.0001847,2]
[374110001,1753210250777,-460.0,0.0001847,2]
[374110002,1753210250786,-151.32234978,0.0001847,2]
[374110003,1753210250798,-998.04,0.0001847,2]
[374110004,1753210250807,-460.0,0.00018471,2]
[374110005,1753210250816,-2213.22,0.00018471,2]
[374110006,1753210250825,-2000.0,0.00018516,2]
[374110007,1753210250835,-1179.28953629,0.00018516,2]
[374110008,1753210250844,-2000.0,0.00018516,2]
[374110009,1753210250853,-2000.0,0.00018516,2]
[374110010,1753210250862,-1000.0,0.00018521,2]
[374110011,1753210250872,-4045.63016767,0.00018642,2]
[374110012,1753210250881,-585.15769763,0.00018643,2]
[374110013,1753210250891,-170.70320484,0.00018644,2]
[374110014,1753210250903,-1000.0,0.00018721,2]
[374110015,1753210250913,-1000.0,0.00018721,2]
[374110016,1753210250922,-1000.0,0.00018721,2]
[374110017,1753210250931,-1000.0,0.00018721,2]
[374110018,1753210250941,-1000.0,0.00018721,2]
[374110019,1753210250950,-1000.0,0.00018721,2]
[374110020,1753210250959,-508.53022819,0.00018721,2]
[374110021,1753210250968,-1000.0,0.00018721,2]
[374110022,1753210250979,-1000.0,0.00018721,2]
[374110023,1753210250988,-1000.0,0.00018721,2]
[374110024,1753210250997,-622.74603772,0.00018721,2]
[374110025,1753210251007,-1000.0,0.00018721,2]
[374110026,1753210251017,-1000.0,0.00018721,2]
[374110027,1753210251026,-1000.0,0.00018721,2]
[374110028,1753210251035,-507.79648748,0.00018721,2]
[374110029,1753210251045,-182.27073641,0.00018721,2]
[374110030,1753210251054,-501.29806592,0.00018721,2]
[374110031,1753210251063,-1002.10753571,0.00018721,2]
[374110032,1753210251073,-889.22,0.00018739,2]
[374110033,1753210251082,-967.41,0.00018739,2]
[374110034,1753210251091,-3933.01,0.00018739,2]
[374110035,1753210251100,-484.3587798,0.0001874,2]
[374110036,1753210251110,-5587.21,0.00018741,2]
[374110037,1753210251119,-1108.38,0.00018741,2]
[374110038,1753210251129,-1005.99,0.00018741,2]
[374110039,1753210251138,-5283.6,0.00018741,2]
[374110040,1753210251147,-1079.55,0.00018741,2]
[374110041,1753210251156,-460.0,0.00018741,2]
[374110042,1753210251165,-3137.23,0.00018741,2]
[374110043,1753210251175,-558.47,0.00018741,2]
[374110044,1753210251184,-1196.19,0.00018741,2]
[374110045,1753210251193,-535.59,0.00018741,2]
[374110046,1753210251202,-1079.29,0.00018741,2]
[374110047,1753210251211,-460.0,0.00018742,2]
[374110048,1753210251221,-746.62,0.00018742,2]
[374110049,1753210251230,-471.42,0.00018742,2]
[374110050,1753210251239,-632.55,0.00018742,2]
[374110051,1753210251248,-606.59,0.00018742,2]
[374110052,1753210251257,-874.42,0.00018742,2]
[374110053,1753210251266,-1090.84,0.00018742,2]
[374110054,1753210251276,-1342.67,0.00018742,2]
[374110055,1753210251285,-460.0,0.00018742,2]
[374110056,1753210251295,-488.38,0.00018742,2]
[374110057,1753210251305,-460.0,0.00018742,2]
[374110058,1753210251314,-460.0,0.00018742,2]
[374110059,1753210251324,-460.0,0.00018742,2]
[374110060,1753210251333,-1118.89,0.00018742,2]
[374110061,1753210251342,-731.94,0.00018742,2]
[374110062,1753210251351,-1345.13,0.00018742,2]
[374110063,1753210251360,-1187.11,0.00018742,2]
[374110064,1753210251370,-2137.7,0.00018742,2]
[374110065,1753210251379,-1349.67,0.00018742,2]
[374110066,1753210251389,-460.0,0.00018742,2]
[374110067,1753210251398,-460.0,0.00018742,2]
[374110068,1753210251408,-1694.69,0.00018742,2]
[374110069,1753210251418,-460.0,0.00018742,2]
[374110070,1753210251427,-409.46216117,0.00018742,2]
[374110071,1753210251436,-754.36,0.00018742,2]
[374110072,1753210251446,-929.4,0.00018742,2]
[374110073,1753210251455,-1020.16,0.00018742,2]
[374110074,1753210251465,-646.92,0.00018742,2]
[374110075,1753210251474,-1358.12,0.00018742,2]
[374110076,1753210251484,-460.0,0.00018743,2]
[374110077,1753210251493,-460.0,0.00018743,2]
[374110078,1753210251503,-553.33,0.00018743,2]
[374110079,1753210251512,-553.25,0.00018743,2]
[374110080,1753210251521,-1153.71,0.00018743,2]
[374110081,1753210251530,-1418.31,0.00018743,2]
[374110082,1753210251540,-460.0,0.00018743,2]
[374110083,1753210251550,-460.0,0.00018743,2]
[374110084,1753210251559,-557.74,0.00018743,2]
[374110085,1753210251569,-460.0,0.00018743,2]
[374110086,1753210251578,-460.0,0.00018743,2]
[374110087,1753210251587,-1362.87,0.00018743,2]
[374110088,1753210251597,-1064.63,0.00018743,2]
[374110089,1753210251606,-571.13,0.00018743,2]
[374110090,1753210251615,-588.73,0.00018743,2]
[374110091,1753210251624,-1351.51,0.00018743,2]
[374110092,1753210251634,-1776.12,0.00018743,2]
[374110093,1753210251644,-544.55,0.00018743,2]
[374110094,1753210251654,-2704.27,0.00018743,2]
[374110095,1753210251662,-691.11,0.00018743,2]
[374110096,1753210251672,-460.0,0.00018743,2]
[374110097,1753210251681,-3949.8,0.00018743,2]
[374110098,1753210251691,-863.13,0.00018743,2]
[374110099,1753210251700,-547.67,0.00018743,2]
[374110100,1753210251709,-460.0,0.00018743,2]
[374110101,1753210251718,-287.72589555,0.00018743,2]
[374110102,1753210251727,-460.0,0.00018743,2]
[374110103,1753210251737,-1345.16,0.00018743,2]
[374110104,1753210251746,-460.0,0.00018744,2]
[374110105,1753210251756,-460.0,0.00018744,2]
[374110106,1753210251765,-5101.83,0.00018744,2]
[374110107,1753210251774,-1108.99,0.00018744,2]
[374110108,1753210251784,-320.37891063,0.00018744,2]
[374110109,1753210251794,-460.0,0.00018744,2]
[374110110,1753210251803,-460.0,0.00018744,2]
[374110111,1753210251877,-605.93,0.00018744,2]
[374110112,1753210251887,-4275.34,0.00018744,2]
[374110113,1753210251900,-460.0,0.00018744,2]
[374110114,1753210251911,-688.73,0.00018744,2]
[374110115,1753210251921,-460.0,0.00018744,2]
[374110116,1753210251930,-460.0,0.00018744,2]
[374110117,1753210251940,-830.04,0.00018744,2]
[374110118,1753210251950,-524.19,0.00018744,2]
[374110119,1753210251960,-460.0,0.00018744,2]
[374110120,1753210251970,-909.71,0.00018744,2]
[374110121,1753210251981,-3027.97,0.00018744,2]
[374110122,1753210251992,-460.0,0.00018744,2]
[374110123,1753210252002,-1465.54,0.00018744,2]
[374110124,1753210252012,-859.92,0.00018744,2]
[374110125,1753210252021,-824.09,0.00018744,2]
[374110126,1753210252031,-2920.58,0.00018744,2]
[374110127,1753210252040,-4347.26,0.00018744,2]
[374110128,1753210252050,-460.0,0.00018744,2]
[374110129,1753210252059,-998.04,0.00018744,2]
[374110130,1753210252069,-460.0,0.00018745,2]
[374110131,1753210252078,-2213.22,0.00018745,2]
[374110132,1753210252088,-5275.87341887,0.00018762,2]
[374110133,1753210252098,-2631.60676088,0.000189,2]
[374110134,1753210252107,-889.22,0.00019013,2]
[374110135,1753210252116,-967.41,0.00019013,2]
[374110136,1753210252126,-3933.01,0.00019013,2]
[374110137,1753210252135,-5587.21,0.00019015,2]
[374110138,1753210252145,-1108.38,0.00019015,2]
[374110139,1753210252154,-1005.99,0.00019015,2]
[374110140,1753210252164,-5283.6,0.00019015,2]
[374110141,1753210252174,-1079.55,0.00019015,2]
[374110142,1753210252184,-460.0,0.00019015,2]
[374110143,1753210252194,-3137.23,0.00019015,2]
[374110144,1753210252204,-558.47,0.00019015,2]
[374110145,1753210252213,-1196.19,0.00019015,2]
[374110146,1753210252224,-535.59,0.00019015,2]
[374110147,1753210252234,-1079.29,0.00019015,2]
[374110148,1753210252243,-460.0,0.00019016,2]
[374110149,1753210252253,-746.62,0.00019016,2]
[374110150,1753210252263,-471.42,0.00019016,2]
[374110151,1753210252273,-632.55,0.00019016,2]
[374110152,1753210252282,-606.59,0.00019016,2]
[374110153,1753210252291,-874.42,0.00019016,2]
[374110154,1753210252301,-1090.84,0.00019016,2]
[374110155,1753210252310,-1342.67,0.00019016,2]
[374110156,1753210252321,-488.38,0.00019016,2]
[374110157,1753210252331,-460.0,0.00019016,2]
[374110158,1753210252341,-460.0,0.00019016,2]
[374110159,1753210252352,-460.0,0.00019016,2]
[374110160,1753210252362,-491.16336141,0.00019016,2]
[374110161,1753210252374,-1118.89,0.00019016,2]
[374110162,1753210252385,-731.94,0.00019016,2]
[374110163,1753210252394,-1345.13,0.00019016,2]
[374110164,1753210252403,-1187.11,0.00019016,2]
[374110165,1753210252413,-2137.7,0.00019016,2]
[374110166,1753210252422,-1349.67,0.00019016,2]
[374110167,1753210252431,-460.0,0.00019016,2]
[374110168,1753210252440,-485.14465566,0.00019016,2]
[374110169,1753210252450,-1694.69,0.00019016,2]
[374110170,1753210252460,-460.0,0.00019016,2]
[374110171,1753210252469,-754.36,0.00019016,2]
[374110172,1753210252479,-929.4,0.00019016,2]
[374110173,1753210252489,-1020.16,0.00019016,2]
[374110174,1753210252498,-646.92,0.00019016,2]
[374110175,1753210252507,-1358.12,0.00019016,2]
[374110176,1753210252517,-460.0,0.00019017,2]
[374110177,1753210252527,-460.0,0.00019017,2]
[374110178,1753210252536,-553.33,0.00019017,2]
[374110179,1753210252546,-553.25,0.00019017,2]
[374110180,1753210252555,-1153.71,0.00019017,2]
[374110181,1753210252565,-1418.31,0.00019017,2]
[374110182,1753210252574,-460.0,0.00019017,2]
[374110183,1753210252584,-460.0,0.00019017,2]
[374110184,1753210252594,-557.74,0.00019017,2]
[374110185,1753210252603,-460.0,0.00019017,2]
[374110186,1753210252613,-247.85280869,0.00019017,2]
[374110187,1753210252622,-1362.87,0.00019017,2]
[374110188,1753210252630,-1064.63,0.00019017,2]
[374110189,1753210252640,-571.13,0.00019017,2]
[374110190,1753210252649,-588.73,0.00019017,2]
[374110191,1753210252658,-1351.51,0.00019017,2]
[374110192,1753210252668,-1776.12,0.00019017,2]
[374110193,1753210252677,-544.55,0.00019017,2]
[374110194,1753210252686,-2704.27,0.00019017,2]
[374110195,1753210252696,-691.11,0.00019017,2]
[374110196,1753210252705,-460.0,0.00019017,2]
[374110197,1753210252714,-3949.8,0.00019017,2]
[374110198,1753210252724,-863.13,0.00019017,2]
[374110199,1753210252733,-547.67,0.00019017,2]
[374110200,1753210252743,-460.0,0.00019017,2]
[374110201,1753210252753,-460.0,0.00019017,2]
[374110202,1753210252762,-1345.16,0.00019017,2]
[374110203,1753210252772,-483.00802276,0.00019018,2]
[374110204,1753210252782,-460.0,0.00019018,2]
[374110205,1753210252792,-5101.83,0.00019018,2]
[374110206,1753210252803,-1108.99,0.00019018,2]
[374110207,1753210252813,-460.0,0.00019018,2]
[374110208,1753210252823,-460.0,0.00019018,2]
[374110209,1753210252833,-605.93,0.00019018,2]
[374110210,1753210252843,-4275.34,0.00019018,2]
[374110211,1753210252853,-460.0,0.00019018,2]
[374110212,1753210252863,-688.73,0.00019018,2]
[374110213,1753210252874,-276.23165664,0.00019018,2]
[374110214,1753210252884,-460.0,0.00019018,2]
[374110215,1753210252894,-830.04,0.00019018,2]
[374110216,1753210252907,-524.19,0.00019018,2]
[374110217,1753210252916,-460.0,0.00019018,2]
[374110218,1753210252925,-909.71,0.00019018,2]
[374110219,1753210252935,-3027.97,0.00019018,2]
[374110220,1753210252945,-460.0,0.00019018,2]
[374110221,1753210252954,-1465.54,0.00019018,2]
[374110222,1753210252964,-859.92,0.00019018,2]
[374110223,1753210252973,-824.09,0.00019018,2]
[374110224,1753210253046,-2920.58,0.00019018,2]
[374110225,1753210253056,-4347.26,0.00019018,2]
[374110226,1753210253065,-460.0,0.00019018,2]
[374110227,1753210253075,-998.04,0.00019018,2]
[374110228,1753210253084,-460.0,0.00019019,2]
[374110229,1753210253094,-2213.22,0.00019019,2]
[374110230,1753210253103,-2500.0,0.00019064,2]
[374110231,1753210253113,-2500.0,0.00019064,2]
[374110232,1753210253122,-2030.6011952,0.00019064,2]
[374110233,1753210253131,-1500.0,0.00019068,2]
[374110234,1753210253140,-160.0,0.00019071,2]
[374110235,1753210253149,-5275.87341887,0.00019072,2]
[374110236,1753210253159,-666.0,0.00019178,2]
[374110237,1753210253168,-184.849692,0.00019178,2]
[374110238,1753210253177,-5000.0,0.00019178,2]
[374110239,1753210253186,-578.05112829,0.00019268,2]
[374110240,1753210253196,-1500.0,0.00019268,2]
[374110241,1753210253205,-322.58031121,0.00019268,2]
[374110242,1753210253214,-1500.0,0.00019268,2]
[374110243,1753210253224,-1500.0,0.00019268,2]
[374110244,1753210253234,-1500.0,0.00019268,2]
[374110245,1753210253243,-1500.0,0.00019268,2]
[374110246,1753210253253,-1496.10722544,0.00019268,2]
[374110247,1753210253263,-505.53775134,0.00019268,2]
[374110248,1753210253272,-439.56988204,0.00019268,2]
[374110249,1753210253282,-1500.0,0.00019268,2]
[374110250,1753210253291,-1500.0,0.00019268,2]
[374110251,1753210253300,-889.22,0.00019287,2]
[374110252,1753210253310,-967.41,0.00019287,2]
[374110253,1753210253320,-3933.01,0.00019287,2]
[374110254,1753210253329,-5587.21,0.00019289,2]
[374110255,1753210253339,-1108.38,0.00019289,2]
[374110256,1753210253348,-1005.99,0.00019289,2]
[374110257,1753210253357,-5283.6,0.00019289,2]
[374110258,1753210253367,-1079.55,0.00019289,2]
[374110259,1753210253378,-460.0,0.00019289,2]
[374110260,1753210253387,-3137.23,0.00019289,2]
[374110261,1753210253396,-558.47,0.00019289,2]
[374110262,1753210253405,-1196.19,0.00019289,2]
[374110263,1753210253414,-535.59,0.00019289,2]
[374110264,1753210253423,-1079.29,0.00019289,2]
[374110265,1753210253432,-460.0,0.0001929,2]
[374110266,1753210253442,-746.62,0.0001929,2]
[374110267,1753210253451,-471.42,0.0001929,2]
[374110268,1753210253460,-632.55,0.0001929,2]
[374110269,1753210253469,-606.59,0.0001929,2]
[374110270,1753210253478,-874.42,0.0001929,2]
[374110271,1753210253487,-1090.84,0.0001929,2]
[374110272,1753210253496,-1342.67,0.0001929,2]
[374110273,1753210253505,-488.38,0.0001929,2]
[374110274,1753210253514,-460.0,0.0001929,2]
[374110275,1753210253523,-460.0,0.0001929,2]
[374110276,1753210253532,-460.0,0.0001929,2]
[374110277,1753210253541,-1118.89,0.0001929,2]